bitfinex-derivatives/quotes_SOLF0:USTF0_20241227
["timestamp","ask_amount","ask_price","bid_price","bid_amount"]
[1735309015725,2.6432,189.38,189.33,5.8639]
[1735309016029,2.6432,189.38,189.34,2.6437]
[1735309016327,3.22,189.46,189.33,3.22]
[1735309016529,7.73372214,189.4,189.33,3.22]
[1735309017525,7.73372214,189.4,189.35,2.6436]
[1735309017526,10.37662214,189.4,189.35,2.6436]
[1735309019533,2.643,189.39,189.35,2.6436]
[1735309019726,7.73372214,189.4,189.33,4.8115]
[1735309019928,7.73372214,189.38,189.33,3.22]
[1735309020124,2.6437,189.35,189.33,3.22]
[1735309020429,7.73372214,189.36,189.33,3.22]
[1735309020634,2.6437,189.34,189.33,3.22]
[1735309020928,7.73372214,189.36,189.29,3.22]
[1735309021428,2.6438,189.34,189.29,3.22]
[1735309022433,2.6438,189.34,189.29,5.8644]
[1735309022832,2.6439,189.33,189.29,3.22]
[1735309023034,7.73372214,189.34,189.28,4.8115]
[1735309023437,2.6441,189.32,189.28,4.8115]
[1735309024734,2.6443,189.3,189.25,2.645]
[1735309024939,7.73372214,189.3,189.23,3.22]
[1735309026038,7.73372214,189.3,189.24,7.73372214]
[1735309027438,7.73372214,189.3,189.26,2.6448]
[1735309027939,2.6442,189.31,189.26,2.6448]
[1735309028132,3.22,189.37,189.26,7.73372214]
[1735309028338,7.73372214,189.35,189.26,7.73372214]
[1735309029334,2.6438,189.34,189.28,2.6444]
[1735309029535,7.73372214,189.31,189.28,3.22]
[1735309029736,3.22,189.41,189.28,3.22]
[1735309029936,10.37762214,189.33,189.28,5.8645]
[1735309030136,7.73372214,189.35,189.28,3.22]
[1735309031133,10.37742214,189.35,189.28,3.22]
[1735309031338,7.73372214,189.35,189.3,2.6443]
[1735309031944,7.73372214,189.33,189.28,3.22]
[1735309032143,7.73372214,189.31,189.28,3.22]
[1735309032338,7.73372214,189.31,189.24,7.73372214]
[1735309032945,2.6445,189.29,189.24,10.37872214]
[1735309034943,3.22,189.36,189.24,7.73372214]
[1735309035143,7.73372214,189.35,189.28,2.6445]
[1735309035649,7.73372214,189.35,189.28,5.8645]
[1735309036249,2.6439,189.33,189.28,5.8645]
[1735309036952,2.6439,189.33,189.29,2.6444]
[1735309038053,7.73372214,189.34,189.28,3.22]
[1735309038251,2.6442,189.31,189.28,3.22]
[1735309038452,7.73372214,189.32,189.28,3.22]
[1735309039051,2.6442,189.31,189.28,3.22]
[1735309039250,7.73372214,189.32,189.28,3.22]
[1735309040153,7.73372214,189.3,189.21,10.58899688]
[1735309040348,7.73372214,189.28,189.22,3.22]
[1735309041056,2.645,189.26,189.21,2.6455]
[1735309041553,10.37872214,189.26,189.21,2.6455]
[1735309042350,7.73372214,189.28,189.21,7.73372214]
[1735309042548,7.73372214,189.3,189.2,3.22]
[1735309042748,7.73372214,189.3,189.23,7.73372214]
[1735309042949,2.6444,189.29,189.23,10.37882214]
[1735309044356,2.6446,189.28,189.23,10.37882214]
[1735309045945,2.6446,189.28,189.23,2.6451]
[1735309046254,7.73372214,189.28,189.21,7.73372214]
[1735309046453,7.73372214,189.26,189.19,4.7762]
[1735309046650,2.6452,189.24,189.19,4.7762]
[1735309046849,7.73372214,189.26,189.19,4.7762]
[1735309047251,7.73372214,189.26,189.2,7.73372214]
[1735309048551,10.37872214,189.26,189.21,2.6454]
[1735309048751,7.73372214,189.26,189.21,2.6454]
[1735309049355,7.73372214,189.26,189.19,4.7762]
[1735309049554,7.73372214,189.24,189.19,1.5562]
[1735309050157,7.73372214,189.22,189.16,3.1776]
[1735309050357,7.73372214,189.2,189.16,3.1776]
[1735309050753,10.37952214,189.2,189.16,3.1776]
[1735309051351,7.73372214,189.2,189.16,5.8238]
[1735309051754,3.22,189.25,189.16,3.1776]
[1735309052256,7.73372214,189.24,189.19,2.6457]
[1735309053256,7.73372214,189.24,189.17,7.73372214]
[1735309053459,7.73372214,189.24,189.2,2.6456]
[1735309054359,57.31483514,189.38,189.2,3.22]
[1735309054360,7.73372214,189.26,189.2,3.22]
[1735309054753,7.73372214,189.26,189.22,2.6453]
[1735309054958,7.73372214,189.28,189.21,7.73372214]
[1735309055252,10.37802214,189.3,189.25,2.645]
[1735309055456,3.22,189.35,189.23,7.73372214]
[1735309055657,7.73372214,189.3,189.23,7.73372214]
[1735309055858,21.49306317,189.39,189.25,7.73372214]
[1735309056154,2.6438,189.34,189.28,2.6446]
[1735309058148,2.6435,189.37,189.25,15.2902841]
[1735309058349,12.0702841,189.4,189.28,12.0702841]
[1735309058554,12.0702841,189.4,189.29,1.6715]
[1735309058749,12.0702841,189.4,189.3,3.22]
[1735309059152,12.0702841,189.43,189.3,3.22]
[1735309059354,2.6429,189.41,189.34,2.6436]
[1735309059550,2.6429,189.41,189.31,12.0702841]
[1735309059751,2.6429,189.41,189.34,2.6437]
[1735309060262,12.0702841,189.4,189.33,3.22]
[1735309061058,14.7132841,189.4,189.33,5.8639]
[1735309062764,2.6428,189.42,189.33,3.22]
[1735309063165,12.0702841,189.43,189.33,3.22]
[1735309063366,14.7127841,189.43,189.37,2.6433]
[1735309063563,14.7127841,189.43,189.33,3.22]
[1735309063564,12.0702841,189.43,189.33,3.22]
[1735309063768,12.0702841,189.46,189.33,3.22]
[1735309063967,2.6423,189.45,189.38,2.6431]
[1735309064162,12.0702841,189.46,189.38,5.8631]
[1735309065370,2.6425,189.44,189.38,5.8631]
[1735309065671,12.0702841,189.46,189.38,3.22]
[1735309067879,14.7124841,189.46,189.4,2.6429]
[1735309068182,12.0702841,189.46,189.4,2.6429]
[1735309068378,2.6427,189.42,189.38,3.22]
[1735309068677,12.0702841,189.46,189.38,3.22]
[1735309070480,12.0702841,189.46,189.39,2.643]
[1735309070481,2.6424,189.44,189.39,2.643]
[1735309071678,2.6425,189.43,189.38,3.22]
[1735309072273,2.6425,189.43,189.38,5.8631]
[1735309072477,2.6423,189.44,189.38,5.8631]
[1735309073982,12.0702841,189.46,189.38,5.8631]
[1735309074171,2.6425,189.43,189.38,5.8631]
[1735309076986,12.0702841,189.54,189.38,3.22]
[1735309076987,12.0702841,189.49,189.38,3.22]
[1735309077184,12.0702841,189.49,189.39,3.2618]
[1735309077387,12.0702841,189.49,189.39,4.8768]
[1735309078282,7.71381878,189.46,189.39,12.59061878]
[1735309078487,7.71381878,189.46,189.42,2.6426]
[1735309079080,7.71381878,189.44,189.39,4.8768]
[1735309079282,7.71381878,189.42,189.39,4.8768]
[1735309080085,7.71381878,189.44,189.39,4.8768]
[1735309080285,12.0556054,189.47,189.39,4.8768]
[1735309080787,12.0556054,189.47,189.39,3.2618]
[1735309081189,2.6425,189.44,189.39,3.2618]
[1735309081391,12.0556054,189.44,189.39,3.2618]
[1735309081890,12.0556054,189.44,189.36,2.6433]
[1735309082188,12.0556054,189.44,189.35,3.22]
[1735309082388,2.6427,189.42,189.35,5.8636]
[1735309082593,12.0556054,189.44,189.35,5.8636]
[1735309083090,2.643,189.4,189.35,5.8636]
[1735309083886,2.643,189.39,189.34,2.6437]
[1735309084789,12.0556054,189.38,189.32,3.2124]
[1735309084989,12.0556054,189.38,189.29,3.22]
[1735309085693,12.0556054,189.35,189.25,3.22]
[1735309086094,2.644,189.32,189.25,3.22]
[1735309086997,12.0556054,189.32,189.25,3.22]
[1735309087191,12.0556054,189.32,189.24,3.1854]
[1735309088392,12.0556054,189.32,189.23,2.6452]
[1735309088393,2.6444,189.29,189.23,2.6452]
[1735309088694,12.0556054,189.32,189.21,3.22]
[1735309089596,12.0556054,189.36,189.21,15.2756054]
[1735309091097,2.6438,189.34,189.27,2.6446]
[1735309091496,12.0556054,189.36,189.26,3.22]
[1735309091792,12.0556054,189.36,189.27,3.2636]
[1735309092297,2.6438,189.34,189.28,2.6446]
[1735309092498,12.0556054,189.36,189.27,3.2636]
[1735309092796,12.0556054,189.33,189.27,3.2636]
[1735309092996,12.0556054,189.33,189.28,2.6446]
[1735309093402,12.0556054,189.36,189.27,3.2636]
[1735309093595,2.6436,189.35,189.29,2.6444]
[1735309094199,2.6436,189.35,189.27,3.2636]
[1735309094396,12.0556054,189.36,189.27,3.2636]
[1735309094602,12.0556054,189.36,189.27,4.8339]
[1735309094895,14.6991054,189.36,189.3,2.6442]
[1735309095096,12.0556054,189.36,189.27,4.8339]
[1735309097605,14.6991054,189.36,189.3,2.6442]
[1735309098504,2.6433,189.38,189.32,2.644]
[1735309098707,12.0556054,189.39,189.32,3.22]
[1735309099009,14.6986054,189.39,189.33,2.6438]
[1735309100111,12.0556054,189.39,189.32,3.22]
[1735309100317,12.0556054,189.39,189.34,2.6437]
[1735309100819,14.6988054,189.39,189.32,5.8639]
[1735309101200,12.0556054,189.39,189.32,3.22]
[1735309101407,2.6433,189.37,189.32,3.22]
[1735309101608,12.0556054,189.39,189.32,3.22]
[1735309103817,12.0556054,189.39,189.32,5.8639]
[1735309104018,12.0556054,189.39,189.32,3.22]
[1735309104908,14.6988054,189.39,189.32,5.8639]
[1735309105218,12.0556054,189.39,189.32,5.8639]
[1735309105812,2.6434,189.37,189.32,3.22]
[1735309106317,7.72228819,189.36,189.32,3.22]
[1735309106517,7.72228819,189.38,189.32,3.22]
[1735309106916,7.72228819,189.36,189.32,3.22]
[1735309108326,2.6436,189.35,189.32,3.22]
[1735309108517,7.72228819,189.34,189.29,2.6443]
[1735309109120,7.72228819,189.34,189.28,3.22]
[1735309109322,7.72228819,189.34,189.3,2.6442]
[1735309109920,7.72228819,189.34,189.28,3.22]
[1735309110123,2.6433,189.38,189.28,10.94228819]
[1735309110326,7.72228819,189.37,189.3,7.72228819]
[1735309110519,7.72228819,189.37,189.34,2.6437]
[1735309111319,7.72228819,189.39,189.33,3.22]
[1735309111519,7.72228819,189.41,189.34,6.4759]
[1735309112121,7.72228819,189.41,189.34,14.19818819]
[1735309113318,3.22,189.5,189.36,7.72228819]
[1735309113515,7.72228819,189.45,189.38,7.72228819]
[1735309113715,7.72228819,189.45,189.39,3.22]
[1735309114316,12.05434672,189.48,189.39,3.22]
[1735309114721,3.22,189.52,189.39,3.22]
[1735309114722,12.05434672,189.45,189.39,3.22]
[1735309115325,12.05434672,189.48,189.39,3.22]
[1735309116722,2.6424,189.44,189.39,3.22]
[1735309117227,2.6422,189.46,189.4,2.6429]
[1735309117527,12.05434672,189.48,189.4,2.6429]
[1735309118529,2.6423,189.45,189.39,3.22]
[1735309118831,12.05434672,189.48,189.39,3.22]
[1735309119029,2.6424,189.44,189.39,3.22]
[1735309119728,2.6424,189.44,189.39,5.863]
[1735309120424,12.05434672,189.45,189.35,4.1888]
[1735309120730,12.05434672,189.42,189.35,3.22]
[1735309121127,12.05434672,189.39,189.33,3.22]
[1735309121332,12.05434672,189.39,189.31,7.28742199]
[1735309121630,12.05434672,189.36,189.31,7.28742199]
[1735309121831,2.6439,189.34,189.31,7.28742199]
[1735309122330,12.05434672,189.36,189.3,3.22]
[1735309122923,2.6436,189.35,189.3,3.22]
[1735309124631,12.05434672,189.36,189.28,3.2499]
[1735309124829,2.6439,189.33,189.28,9.1145]
[1735309125332,2.6439,189.33,189.28,6.4699]
[1735309125737,12.05434672,189.36,189.28,6.4699]
[1735309125936,2.6438,189.34,189.28,9.1144]
[1735309126228,12.05434672,189.37,189.28,6.4699]
[1735309127338,2.6431,189.39,189.33,2.6438]
[1735309128332,12.05434672,189.37,189.31,3.22]
[1735309129430,2.6435,189.36,189.31,3.22]
[1735309130039,12.05434672,189.37,189.33,2.6438]
[1735309130234,12.05434672,189.37,189.31,3.22]
[1735309131431,2.6435,189.36,189.31,5.8641]
[1735309131645,57.95035068,189.51,189.33,12.05434672]
[1735309131839,12.05434672,189.46,189.34,1.6379]
[1735309132242,2.6424,189.44,189.38,2.6431]
[1735309132440,2.6424,189.44,189.39,3.22]
[1735309133040,2.6425,189.43,189.39,3.22]
[1735309135745,2.6421,189.46,189.39,3.22]
[1735309136647,2.6421,189.46,189.41,2.6426]
[1735309137146,2.6421,189.46,189.41,2.6427]
[1735309137450,14.69624672,189.48,189.39,3.22]
[1735309138144,14.69624672,189.48,189.43,2.6423]
[1735309138352,2.6419,189.47,189.44,3.22]
[1735309138649,12.05434672,189.48,189.44,3.22]
[1735309139345,2.642,189.47,189.44,3.22]
[1735309140849,12.05434672,189.48,189.44,3.22]
[1735309140850,2.6422,189.46,189.44,3.22]
[1735309141045,12.05434672,189.48,189.36,12.05434672]
[1735309141246,12.05434672,189.48,189.37,3.22]
[1735309141445,2.6424,189.44,189.39,2.643]
[1735309141644,12.05434672,189.45,189.37,3.22]
[1735309141843,12.05434672,189.45,189.35,3.3145]
[1735309142146,2.6428,189.41,189.38,3.22]
[1735309142449,12.05434672,189.45,189.38,3.22]
[1735309142847,3.22,189.51,189.38,3.22]
[1735309143051,12.05434672,189.46,189.38,3.22]
[1735309143248,2.6426,189.43,189.39,3.22]
[1735309144256,2.6423,189.45,189.4,2.6429]
[1735309144547,2.6423,189.45,189.39,3.22]
[1735309145454,2.6423,189.45,189.41,2.6428]
[1735309145654,12.05434672,189.49,189.39,3.22]
[1735309146349,2.6418,189.48,189.42,2.6426]
[1735309147556,12.05434672,189.52,189.39,15.27434672]
[1735309149651,2.6407,189.56,189.46,2.6421]
[1735309149852,12.05434672,189.54,189.47,3.22]
[1735309150058,12.05434672,189.54,189.48,3.22]
[1735309150256,2.6411,189.53,189.49,3.22]
[1735309150555,2.6411,189.53,189.5,3.22]
[1735309151058,12.05434672,189.54,189.43,4.7984]
[1735309151358,12.05434672,189.54,189.44,3.22]
[1735309152659,2.6415,189.51,189.44,3.22]
[1735309153055,12.05434672,189.54,189.45,3.22]
[1735309153259,12.05434672,189.51,189.36,29.14968797]
[1735309153457,12.05434672,189.48,189.37,3.2157]
[1735309153760,12.05434672,189.45,189.38,3.22]
[1735309153955,12.05434672,189.45,189.37,3.2157]
[1735309154156,2.6425,189.43,189.38,3.22]
[1735309154357,12.05434672,189.45,189.38,3.22]
[1735309154654,12.05434672,189.48,189.38,3.22]
[1735309155353,12.05434672,189.51,189.38,3.22]
[1735309155553,3.22,189.56,189.38,3.22]
[1735309155761,12.05434672,189.51,189.38,3.22]
[1735309156558,2.6416,189.5,189.44,2.6423]
[1735309156856,12.05434672,189.51,189.45,3.22]
[1735309157059,12.05434672,189.54,189.37,3.2157]
[1735309157060,12.05434672,189.48,189.37,3.2157]
[1735309157261,12.05434672,189.48,189.38,3.22]
[1735309158456,2.6422,189.45,189.39,2.6429]
[1735309159068,2.6422,189.46,189.39,2.6429]
[1735309159264,12.05434672,189.48,189.39,2.6429]
[1735309159563,12.05434672,189.48,189.38,3.22]
[1735309159763,12.05434672,189.48,189.41,2.6427]
[1735309160666,2.6422,189.46,189.41,2.6427]
[1735309161867,12.05434672,189.48,189.38,3.22]
[1735309162067,2.6419,189.48,189.43,2.6425]
[1735309162268,2.6419,189.48,189.43,5.8625]
[1735309162468,2.6419,189.48,189.43,3.22]
[1735309162868,2.642,189.47,189.43,5.8625]
[1735309163162,12.05434672,189.51,189.43,3.22]
[1735309163568,2.6424,189.44,189.42,3.22]
[1735309164175,2.6422,189.45,189.42,3.22]
[1735309165867,12.05434672,189.48,189.42,3.22]
[1735309166070,12.05434672,189.45,189.39,3.22]
[1735309166267,12.05434672,189.45,189.35,1.6854]
[1735309166473,2.6429,189.4,189.36,5.8634]
[1735309167176,12.05434672,189.45,189.36,5.8634]
[1735309167477,12.05434672,189.45,189.37,2.6433]
[1735309167679,12.05434672,189.48,189.36,3.22]
[1735309168181,2.6422,189.45,189.39,2.643]
[1735309168476,2.6422,189.45,189.36,3.22]
[1735309168877,2.6422,189.45,189.4,2.6429]
[1735309169073,12.05434672,189.48,189.41,3.24]
[1735309169274,21.7313815,189.56,189.41,3.24]
[1735309169275,12.05434672,189.51,189.41,3.24]
[1735309169480,12.05434672,189.51,189.43,2.6424]
[1735309169681,2.6418,189.48,189.43,2.6424]
[1735309170081,12.05434672,189.51,189.41,3.24]
[1735309170383,2.642,189.47,189.42,2.6426]
[1735309172088,2.6422,189.46,189.41,5.8827]
[1735309172377,12.05434672,189.48,189.4,3.24]
[1735309172586,12.05434672,189.48,189.38,3.24]
[1735309172773,12.05434672,189.45,189.38,3.24]
[1735309173084,12.05434672,189.45,189.37,3.24]
[1735309173880,12.05434672,189.45,189.32,3.1181]
[1735309174181,12.05434672,189.38,189.3,29.14968797]
[1735309174483,2.6436,189.35,189.31,3.24]
[1735309175497,2.6435,189.36,189.31,3.24]
[1735309175686,12.05434672,189.41,189.31,3.24]
[1735309177589,2.6432,189.39,189.34,2.6437]
[1735309178085,12.05434672,189.41,189.31,3.24]
[1735309178282,2.6428,189.41,189.35,2.6436]
[1735309178589,2.6428,189.41,189.36,3.24]
[1735309180686,2.6426,189.43,189.36,3.24]
[1735309180887,12.05434672,189.44,189.36,3.24]
[1735309181890,12.05434672,189.47,189.36,3.24]
[1735309182588,12.05434672,189.5,189.37,13.74064672]
[1735309183390,2.6419,189.48,189.37,13.74064672]
[1735309183593,12.05434672,189.5,189.37,13.74064672]
[1735309183788,12.05434672,189.53,189.4,12.05434672]
[1735309184095,12.05434672,189.53,189.41,3.24]
[1735309184390,2.6416,189.5,189.44,2.6423]
[1735309184783,2.6415,189.51,189.45,2.6421]
[1735309184989,12.05434672,189.53,189.46,3.24]
[1735309185387,2.6414,189.51,189.46,3.24]
[1735309185582,2.6414,189.51,189.46,5.882]
[1735309186089,2.6416,189.5,189.46,3.24]
[1735309186288,12.05434672,189.53,189.46,3.24]
[1735309186691,12.05434672,189.5,189.46,3.24]
[1735309187592,2.6419,189.48,189.46,3.24]
[1735309187789,12.05434672,189.5,189.46,3.24]
[1735309188397,2.6417,189.49,189.46,3.24]
[1735309190293,2.6418,189.48,189.46,3.24]
[1735309191494,2.6415,189.5,189.46,5.882]
[1735309192587,12.05434672,189.53,189.46,5.882]
[1735309192588,2.6414,189.51,189.46,5.882]
[1735309192795,12.05434672,189.53,189.46,5.882]
[1735309193486,2.6415,189.51,189.46,5.882]
[1735309197795,3.24,189.59,189.46,5.882]
[1735309197796,12.05434672,189.56,189.46,3.24]
[1735309197996,2.6411,189.54,189.5,2.6414]
[1735309198896,2.6411,189.54,189.51,3.22]
[1735309199296,2.6408,189.55,189.51,3.22]
[1735309199497,2.6408,189.55,189.51,5.8613]
[1735309200195,2.6408,189.55,189.51,3.22]
[1735309200394,2.641,189.54,189.51,3.22]
[1735309200591,12.05434672,189.56,189.51,3.22]
[1735309200895,2.6409,189.55,189.51,3.22]
[1735309201098,12.05434672,189.59,189.51,3.22]
[1735309201396,21.7313815,189.68,189.52,3.22]
[1735309201700,12.05434672,189.62,189.52,3.22]
[1735309202293,12.05434672,189.59,189.49,3.22]
[1735309202896,2.641,189.54,189.49,5.8616]
[1735309205901,12.05434672,189.59,189.49,3.22]
[1735309207193,12.05434672,189.59,189.49,5.8616]
[1735309207600,2.6411,189.53,189.49,3.22]
[1735309207799,12.05434672,189.56,189.5,3.22]
[1735309208100,12.05434672,189.56,189.47,2.6418]
[1735309208302,2.6414,189.52,189.48,3.22]
[1735309209707,2.6414,189.52,189.49,3.22]
[1735309210702,12.05434672,189.56,189.49,3.22]
[1735309210903,2.6414,189.51,189.49,3.22]
[1735309212203,2.6412,189.53,189.49,3.22]
[1735309212508,12.05434672,189.56,189.49,3.22]
[1735309212706,12.05434672,189.57,189.49,3.22]
[1735309212897,2.6411,189.54,189.49,3.22]
[1735309214503,2.6411,189.54,189.49,5.8616]
[1735309214701,12.05434672,189.57,189.49,3.22]
[1735309214906,2.6411,189.53,189.49,3.22]
[1735309215911,12.05434672,189.57,189.49,3.22]
[1735309215912,2.6414,189.52,189.49,3.22]
[1735309216103,12.05434672,189.54,189.42,3.2957]
[1735309216309,7.71155429,189.5,189.46,3.22]
[1735309216606,2.6419,189.47,189.46,3.22]
[1735309217812,7.71155429,189.5,189.46,3.22]
[1735309218012,2.6418,189.48,189.46,3.22]
[1735309219210,2.6419,189.47,189.46,3.22]
[1735309222115,12.04903606,189.51,189.42,3.2957]
[1735309222409,12.04903606,189.51,189.4,1.6841]
[1735309222410,12.04903606,189.45,189.36,58.29937595]
[1735309222818,2.6428,189.41,189.36,61.51937595]
[1735309223518,2.6428,189.41,189.36,3.22]
[1735309223815,12.04903606,189.42,189.36,3.22]
[1735309224318,2.6431,189.39,189.36,3.22]
[1735309224916,12.04903606,189.42,189.36,3.22]
[1735309225115,14.69173606,189.42,189.36,5.8634]
[1735309225412,12.04903606,189.42,189.36,5.8634]
[1735309226016,2.6429,189.4,189.36,3.22]
[1735309226216,12.04903606,189.42,189.36,3.22]
[1735309226409,12.04903606,189.42,189.34,2.6436]
[1735309226607,2.6432,189.39,189.34,2.6436]
[1735309227119,12.04903606,189.42,189.33,3.22]
[1735309227814,2.6433,189.37,189.33,3.22]
[1735309229316,2.6431,189.39,189.34,2.6437]
[1735309229918,2.6429,189.4,189.35,2.6435]
[1735309230714,2.6428,189.42,189.37,2.6433]
[1735309231115,2.6425,189.44,189.38,2.6431]
[1735309231415,2.6425,189.44,189.33,15.26903606]
[1735309231611,2.6422,189.45,189.4,2.6429]
[1735309232615,2.6425,189.43,189.39,5.863]
[1735309232818,2.6425,189.43,189.39,3.22]
[1735309237320,2.6428,189.42,189.39,3.22]
[1735309237615,3.22,189.51,189.38,3.1957]
[1735309237616,12.04903606,189.45,189.38,3.1957]
[1735309237817,2.6433,189.38,189.35,3.22]
[1735309238013,12.04903606,189.42,189.33,2.6439]
[1735309238219,12.04903606,189.42,189.32,4.8016]
[1735309238723,12.04903606,189.42,189.32,1.5816]
[1735309239714,2.643,189.39,189.32,1.5816]
[1735309239917,12.04903606,189.42,189.32,1.5816]
[1735309241223,2.6436,189.35,189.32,1.5816]
[1735309241423,12.04903606,189.39,189.32,1.5816]
[1735309241623,12.04903606,189.39,189.29,2.6443]
[1735309241823,2.6439,189.33,189.29,2.6443]
[1735309242926,2.6437,189.35,189.29,2.6443]
[1735309243431,2.6437,189.35,189.3,2.6443]
[1735309244224,12.04903606,189.39,189.27,3.22]
[1735309244432,12.04903606,189.39,189.29,2.6444]
[1735309244730,12.04903606,189.36,189.27,3.22]
[1735309245234,2.644,189.33,189.27,2.6446]
[1735309246125,12.04903606,189.36,189.27,2.6446]
[1735309246325,2.6441,189.32,189.27,2.6446]
[1735309253533,2.6441,189.32,189.26,3.3153]
[1735309253733,2.6441,189.32,189.28,2.6445]
[1735309256435,21.7313815,189.48,189.31,7.7245852]
[1735309256634,7.7245852,189.38,189.31,7.7245852]
[1735309257444,2.6434,189.37,189.33,2.6438]
[1735309257633,2.6434,189.37,189.31,7.7245852]
[1735309258033,7.7245852,189.36,189.3,3.22]
[1735309258237,2.6436,189.35,189.3,5.8643]
[1735309258744,10.3683852,189.34,189.3,3.22]
[1735309260244,2.644,189.33,189.3,3.22]
[1735309260446,7.7245852,189.32,189.26,3.3153]
[1735309260744,7.7245852,189.3,189.26,3.3153]
[1735309261439,7.7245852,189.28,189.21,10.49952199]
[1735309261639,7.7245852,189.26,189.21,10.49952199]
[1735309262241,12.08001837,189.28,189.21,10.49952199]
[1735309262547,12.08001837,189.25,189.18,9.15593113]
[1735309262741,12.08001837,189.22,189.18,7.28742199]
[1735309263349,2.6458,189.2,189.18,7.28742199]
[1735309263645,12.08001837,189.22,189.18,7.28742199]
[1735309263942,12.08001837,189.22,189.14,3.2121]
[1735309264440,2.6457,189.2,189.14,5.8586]
[1735309264840,12.08001837,189.22,189.14,3.2121]
[1735309265043,2.6453,189.23,189.14,3.2121]
[1735309265243,12.08001837,189.25,189.14,3.2121]
[1735309266436,2.6456,189.21,189.15,2.6463]
[1735309266641,12.08001837,189.25,189.14,3.2121]
[1735309266843,2.646,189.18,189.11,1.5498]
[1735309267146,12.08001837,189.18,189.11,1.5498]
[1735309268548,2.6461,189.17,189.12,2.6468]
[1735309269549,12.08001837,189.18,189.08,2.6472]
[1735309269747,15.30001837,189.18,189.06,3.2231]
[1735309270051,12.08001837,189.15,189.06,3.2231]
[1735309270242,2.6468,189.12,189.06,5.8706]
[1735309271447,12.08001837,189.15,189.06,3.2231]
[1735309273351,2.6461,189.17,189.06,3.2231]
[1735309273742,12.08001837,189.18,189.06,3.2231]
[1735309274147,2.6464,189.15,189.09,2.6471]
[1735309276247,2.6464,189.15,189.1,2.6471]
[1735309277542,2.6464,189.15,189.08,2.6473]
[1735309277950,12.08001837,189.15,189.06,3.2231]
[1735309278257,2.6471,189.1,189.06,3.2231]
[1735309278558,12.08001837,189.12,189.02,4.7936]
[1735309278743,2.6475,189.07,189.02,1.5736]
[1735309278949,12.08001837,189.09,189.01,3.22]
[1735309279347,2.6478,189.05,189.01,3.22]
[1735309280657,2.6476,189.07,189.01,3.22]
[1735309280855,2.6476,189.07,189.0,3.2301]
[1735309281055,2.6476,189.07,189.02,2.6482]
[1735309281557,12.08001837,189.09,189.02,2.6482]
[1735309281752,2.6477,189.06,189.02,2.6482]
[1735309282747,12.08001837,189.09,189.0,3.2301]
[1735309282951,14.72741837,189.09,189.04,2.6479]
[1735309283461,12.08001837,189.09,189.0,3.2301]
[1735309283659,2.6477,189.06,189.01,2.6482]
[1735309283951,12.08001837,189.09,189.0,3.2301]
[1735309284160,12.08001837,189.06,189.0,3.2301]
[1735309284448,12.08001837,189.06,189.0,1.5862]
[1735309284648,12.08001837,189.06,188.98,3.22]
[1735309285454,2.6479,189.04,188.99,2.6486]
[1735309285754,12.08001837,189.06,188.97,1.6714]
[1735309285951,12.08001837,189.09,188.95,2.6491]
[1735309285952,2.6486,189.0,188.95,2.6491]
[1735309286256,12.08001837,189.0,188.91,3.22]
[1735309286450,2.6488,188.98,188.94,2.6493]
[1735309286656,2.6488,188.98,188.91,3.22]
[1735309287155,12.08001837,188.97,188.88,3.22]
[1735309287550,12.08001837,188.97,188.88,5.8701]
[1735309288661,12.08001837,188.97,188.89,2.65]
[1735309289550,2.6494,188.94,188.89,2.65]
[1735309290051,12.08001837,188.94,188.83,3.22]
[1735309290354,12.08001837,188.91,188.83,3.22]
[1735309290556,2.6502,188.88,188.83,3.22]